bitfinex-derivatives/quotes_BTCF0:USTF0_20241210
["timestamp","ask_amount","ask_price","bid_price","bid_amount"]
[1733809775429,0.05158,96902.0,96900.0,0.24671059]
[1733809775920,8e-05,96901.0,96900.0,0.24671059]
[1733809776327,0.051582,96898.0,96895.0,0.30847867]
[1733809776521,0.051582,96898.0,96897.0,0.40594161]
[1733809776721,0.051662,96898.0,96897.0,0.40594161]
[1733809776920,0.051662,96898.0,96897.0,0.3608]
[1733809777930,8e-05,96898.0,96894.0,0.30847867]
[1733809778118,8e-05,96898.0,96892.0,0.30847867]
[1733809778318,0.051584,96894.0,96893.0,0.0451442]
[1733809780032,0.052584,96894.0,96893.0,0.0521442]
[1733809780620,0.052584,96894.0,96893.0,0.0561442]
[1733809781532,0.052584,96894.0,96893.0,0.011]
[1733809781828,0.052584,96894.0,96893.0,0.05614526]
[1733809785433,0.052584,96894.0,96893.0,0.25782154]
[1733809785827,0.052584,96894.0,96893.0,0.011]
[1733809786232,0.052584,96894.0,96893.0,0.05614589]
[1733809786824,0.413384,96894.0,96893.0,0.05614589]
[1733809787026,0.413384,96894.0,96889.0,0.19915289]
[1733809787233,0.051594,96876.0,96875.0,0.30847867]
[1733809787532,0.051594,96876.0,96875.0,0.58300494]
[1733809787728,0.051594,96876.0,96875.0,0.2745191]
[1733809787926,0.051594,96876.0,96875.0,0.30849393]
[1733809788122,0.051594,96876.0,96875.0,0.30856661]
[1733809788528,0.052594,96876.0,96875.0,0.00907268]
[1733809788724,0.06288034,96876.0,96875.0,0.00907268]
[1733809789530,0.05581119,96885.0,96875.0,7.268e-05]
[1733809789733,0.001,96876.0,96875.0,0.00907268]
[1733809790325,0.001,96876.0,96875.0,0.05422135]
[1733809790730,0.001,96876.0,96875.0,0.05822135]
[1733809791038,0.051593,96877.0,96875.0,0.05822135]
[1733809791039,0.051593,96877.0,96875.0,0.31256661]
[1733809791235,0.051593,96877.0,96876.0,0.31933108]
[1733809792039,0.05159,96883.0,96879.0,0.051592]
[1733809792344,0.051591,96881.0,96880.0,0.04514867]
[1733809793335,0.06613823,96885.0,96878.0,0.30819043]
[1733809793542,0.051592,96880.0,96879.0,0.30810958]
[1733809794239,0.051592,96880.0,96879.0,0.58184045]
[1733809794738,0.051592,96880.0,96879.0,0.58161302]
[1733809794947,0.051592,96880.0,96879.0,0.27350344]
[1733809795150,0.051592,96880.0,96879.0,0.28150344]
[1733809796530,0.01055556,96886.0,96879.0,0.28150344]
[1733809796736,0.051589,96886.0,96882.0,0.30814507]
[1733809796942,0.05159,96885.0,96884.0,0.3608]
[1733809797142,0.05159,96885.0,96884.0,0.66894507]
[1733809797540,0.05581119,96890.0,96884.0,0.63447677]
[1733809797839,0.051585,96892.0,96888.0,0.051587]
[1733809798040,0.051585,96892.0,96890.0,0.30812111]
[1733809798247,0.051585,96892.0,96891.0,0.30812111]
[1733809798541,0.051585,96892.0,96891.0,0.27346062]
[1733809799542,0.052585,96892.0,96891.0,0.27346062]
[1733809800133,0.001,96892.0,96891.0,0.27346062]
[1733809801042,0.001,96892.0,96891.0,0.28046062]
[1733809801345,0.001,96892.0,96891.0,0.71230866]
[1733809801541,0.001,96892.0,96891.0,0.34244062]
[1733809801743,0.01030012,96904.0,96901.0,0.05158]
[1733809801941,0.051578,96906.0,96901.0,0.05158]
[1733809801942,0.051578,96906.0,96903.0,0.3608]
[1733809802142,0.051578,96906.0,96904.0,0.27342062]
[1733809802449,0.051578,96906.0,96905.0,0.27346062]
[1733809802649,0.051578,96906.0,96905.0,0.27305026]
[1733809802948,8e-05,96910.0,96907.0,0.051576]
[1733809803245,8e-05,96910.0,96909.0,0.30822842]
[1733809803541,8e-05,96910.0,96909.0,0.27305026]
[1733809803745,8e-05,96910.0,96909.0,0.33295026]
[1733809804239,0.01052022,96912.0,96910.0,0.051575]
[1733809804436,0.10738119,96920.0,96911.0,0.63381026]
[1733809804637,0.10738119,96920.0,96912.0,0.58091594]
[1733809804847,0.10738119,96920.0,96919.0,4e-05]
[1733809805044,0.05157,96920.0,96919.0,4e-05]
[1733809805535,0.06204537,96920.0,96919.0,4e-05]
[1733809806641,0.01047537,96920.0,96919.0,0.41241]
[1733809806847,0.0648,96927.0,96920.0,0.051569]
[1733809807139,0.07506674,96927.0,96926.0,4e-05]
[1733809807940,0.07903081,96927.0,96926.0,4e-05]
[1733809808950,0.08103081,96927.0,96926.0,4e-05]
[1733809809340,0.08603081,96927.0,96926.0,4e-05]
[1733809812242,0.01096407,96927.0,96926.0,4e-05]
[1733809813846,1.51096407,96927.0,96926.0,4e-05]
[1733809814248,0.01096407,96927.0,96926.0,4e-05]
[1733809814851,1.51096407,96927.0,96926.0,4e-05]
[1733809815245,0.01096407,96927.0,96926.0,4e-05]
[1733809823161,0.07506407,96927.0,96926.0,4e-05]
[1733809825860,0.01096407,96927.0,96926.0,0.36084]
[1733809826154,0.01096407,96927.0,96926.0,0.63000921]
[1733809827364,0.00011584,96933.0,96926.0,0.63000921]
[1733809827549,0.15454515,96957.0,96938.0,0.05156]
[1733809827754,0.05581119,96950.0,96947.0,0.3608]
[1733809827955,0.114051,96956.0,96955.0,4e-05]
[1733809828463,0.12452761,96956.0,96955.0,4e-05]
[1733809829664,0.14152761,96956.0,96955.0,0.00204]
[1733809829870,0.07902761,96956.0,96955.0,0.00204]
[1733809830355,0.43982761,96956.0,96955.0,0.00204]
[1733809830668,0.53217276,96956.0,96955.0,0.00204]
[1733809830863,0.43982761,96956.0,96955.0,0.00204]
[1733809831565,0.17153863,96956.0,96955.0,0.00204]
[1733809831761,0.07902761,96956.0,96955.0,0.00204]
[1733809832763,0.02747661,96956.0,96955.0,0.00204]
[1733809834972,0.02547661,96956.0,96955.0,0.00104]
[1733809837064,0.07702661,96956.0,96955.0,0.00104]
[1733809841170,0.015,96956.0,96955.0,0.00104]
[1733809841360,0.015,96956.0,96955.0,0.00113668]
[1733809842873,0.012,96956.0,96955.0,0.00113668]
[1733809844073,0.011,96956.0,96955.0,0.00113668]
[1733809845265,0.06255,96956.0,96955.0,0.00113668]
[1733809847872,0.42335,96956.0,96932.0,0.38193383]
[1733809848074,0.051563,96934.0,96932.0,0.38193383]
[1733809848776,0.051563,96934.0,96932.0,0.3608]
[1733809848965,0.051563,96934.0,96933.0,6.806e-05]
[1733809850977,0.06210537,96934.0,96933.0,6.806e-05]
[1733809851779,0.06210537,96934.0,96933.0,0.00106806]
[1733809852167,0.06210537,96934.0,96933.0,0.00206806]
[1733809855677,0.06210537,96934.0,96933.0,0.00106806]
[1733809855870,0.06510537,96934.0,96933.0,0.00106806]
[1733809858585,0.05157,96920.0,96915.0,0.0637]
[1733809859083,0.05165,96920.0,96915.0,0.0637]
[1733809860678,0.05165,96920.0,96919.0,0.00104]
[1733809861383,0.05165,96920.0,96919.0,0.00304]
[1733809862390,0.05165,96920.0,96919.0,0.00204]
[1733809863383,0.05165,96920.0,96919.0,0.00304]
[1733809863384,0.06205857,96920.0,96919.0,0.00304]
[1733809864378,0.06205857,96920.0,96919.0,0.001]
[1733809864583,0.48655857,96920.0,96897.0,0.18426287]
[1733809864885,0.48655857,96920.0,96893.0,0.0598]
[1733809864886,0.051584,96894.0,96893.0,0.0598]
[1733809865283,0.051664,96894.0,96893.0,0.0598]
[1733809866687,0.051664,96894.0,96893.0,0.0638]
[1733809867277,0.051664,96894.0,96893.0,0.0708]
[1733809867476,0.052664,96894.0,96893.0,0.0708]
[1733809867889,0.052664,96894.0,96893.0,0.09112512]
[1733809868584,0.00108,96894.0,96893.0,0.09112512]
[1733809868979,0.41661119,96920.0,96894.0,0.051584]
[1733809869181,0.051578,96905.0,96901.0,0.54502924]
[1733809869381,0.051578,96905.0,96904.0,0.18422924]
[1733809869591,0.051578,96905.0,96902.0,0.0592]
[1733809870091,0.051574,96912.0,96906.0,0.051577]
[1733809870292,0.051574,96912.0,96911.0,0.3608]
[1733809871881,0.052574,96912.0,96911.0,0.54500778]
[1733809872081,0.052574,96912.0,96911.0,0.3608]
[1733809872277,0.001,96912.0,96911.0,0.54506866]
[1733809872487,0.001,96912.0,96911.0,0.412375]
[1733809873794,0.001,96912.0,96911.0,0.69878621]
[1733809874092,0.001,96912.0,96911.0,0.7337865]
[1733809874289,0.001,96912.0,96911.0,1.00180725]
[1733809874489,0.001,96912.0,96911.0,0.68636879]
[1733809874792,0.001,96912.0,96911.0,0.427375]
[1733809875286,0.051572,96917.0,96911.0,0.418375]
[1733809875493,0.051572,96917.0,96912.0,0.30761113]
[1733809875693,0.051572,96917.0,96916.0,4e-05]
[1733809877391,0.051572,96917.0,96916.0,0.2739361]
[1733809877587,0.052572,96917.0,96916.0,0.2819361]
[1733809878698,0.001,96917.0,96916.0,0.2819361]
[1733809880689,0.05157,96921.0,96917.0,0.051571]
[1733809880890,0.05157,96919.0,96918.0,0.30817901]
[1733809882092,0.001,96919.0,96918.0,0.27550396]
[1733809883689,0.001,96919.0,96918.0,0.27950396]
[1733809883890,0.001,96919.0,96918.0,0.27940068]
[1733809884193,0.051569,96921.0,96918.0,0.58057046]
[1733809884398,0.001,96919.0,96918.0,0.31916978]
[1733809884791,0.001,96919.0,96918.0,0.31816978]
[1733809884994,0.001,96919.0,96918.0,0.58661002]
[1733809885295,0.001,96919.0,96918.0,0.58658619]
[1733809886196,0.001,96919.0,96918.0,0.31814595]
[1733809886403,0.001,96919.0,96918.0,0.01]
[1733809888492,0.001,96919.0,96918.0,0.58650763]
[1733809888691,0.001,96919.0,96918.0,0.27836168]
[1733809889588,0.051566,96928.0,96918.0,0.27236168]
[1733809889785,0.051566,96928.0,96922.0,0.30780092]
[1733809889990,0.051566,96928.0,96927.0,4e-05]
[1733809890801,0.052566,96928.0,96927.0,4e-05]
[1733809891392,0.051566,96928.0,96927.0,4e-05]
[1733809891586,0.051566,96928.0,96927.0,0.00204]
[1733809892999,0.051566,96928.0,96927.0,0.00404]
[1733809893600,0.051566,96928.0,96927.0,0.00604]
[1733809893795,0.051567,96925.0,96923.0,0.24620809]
[1733809893995,0.051568,96923.0,96922.0,0.24620809]
[1733809894193,0.051568,96923.0,96921.0,0.60700809]
[1733809894699,8e-05,96922.0,96921.0,0.60700809]
[1733809895103,8e-05,96922.0,96921.0,0.3608]
[1733809896805,8e-05,96922.0,96921.0,0.3618]
[1733809897005,0.06408,96922.0,96921.0,0.3618]
[1733809897501,0.06408,96922.0,96921.0,0.001]
[1733809897897,0.05157,96919.0,96918.0,0.30780092]
[1733809898098,0.05157,96919.0,96918.0,0.30829369]
[1733809898308,0.051571,96917.0,96916.0,0.30829369]
[1733809898600,0.051651,96917.0,96916.0,0.57878766]
[1733809898803,0.051651,96917.0,96909.0,0.36978918]
[1733809898804,8e-05,96917.0,96909.0,0.36978918]
[1733809899107,0.051573,96914.0,96912.0,0.30855865]
[1733809899402,0.051574,96912.0,96911.0,0.30855865]
[1733809899606,0.051574,96912.0,96911.0,0.2703754]
[1733809899801,0.051574,96912.0,96911.0,0.57894767]
[1733809900202,0.051574,96912.0,96911.0,0.30857227]
[1733809900499,0.051574,96912.0,96911.0,0.57930522]
[1733809901100,0.051574,96912.0,96911.0,0.30857227]
[1733809901407,0.051574,96912.0,96911.0,0.001]
[1733809902798,0.051576,96909.0,96908.0,0.30857227]
[1733809902998,0.051576,96909.0,96908.0,0.57829181]
[1733809903204,0.051656,96909.0,96908.0,0.30848158]
[1733809903403,0.051656,96909.0,96907.0,0.30848158]
[1733809903702,0.051577,96907.0,96905.0,0.30848158]
[1733809903898,0.05898,96908.0,96903.0,0.30854367]
[1733809904104,0.05158,96900.0,96899.0,0.3608]
[1733809905004,0.05166,96900.0,96894.0,0.30854367]
[1733809905202,0.051584,96893.0,96892.0,0.32891205]
[1733809905605,0.051664,96893.0,96892.0,0.02036838]
[1733809907008,0.052664,96893.0,96892.0,0.02736838]
[1733809907202,0.00108,96893.0,96892.0,0.38816838]
[1733809907402,0.00108,96893.0,96892.0,0.66151786]
[1733809908408,0.00108,96893.0,96892.0,1.03130704]
[1733809908611,0.00108,96893.0,96892.0,0.66151786]
[1733809909813,0.06211366,96901.0,96895.0,0.051583]
[1733809910011,0.06211366,96901.0,96900.0,0.66887036]
[1733809910210,0.06211366,96901.0,96900.0,0.93821984]
[1733809910508,0.06211366,96901.0,96900.0,0.93837205]
[1733809910911,0.06211366,96901.0,96900.0,0.66887036]
[1733809911107,0.06211366,96901.0,96900.0,0.3608]
[1733809911308,0.06311366,96901.0,96900.0,0.3608]
[1733809911507,0.05258,96901.0,96900.0,0.3608]
[1733809912217,0.05258,96901.0,96899.0,0.30807036]
[1733809912410,0.051581,96900.0,96898.0,0.30807036]
[1733809912611,0.051661,96900.0,96898.0,0.30807036]
[1733809913419,0.051661,96900.0,96899.0,0.30807036]
[1733809913919,0.051661,96900.0,96898.0,0.31207036]
[1733809914415,8e-05,96899.0,96898.0,0.008]
[1733809914615,8e-05,96899.0,96898.0,0.31607036]
[1733809914804,8e-05,96899.0,96898.0,0.58555053]
[1733809915010,8e-05,96899.0,96898.0,0.27748017]
[1733809915608,8e-05,96899.0,96898.0,0.27348017]
[1733809915808,8e-05,96899.0,96898.0,0.33348017]
[1733809916612,0.4193,96919.0,96898.0,0.33348017]
[1733809916613,0.051649,96922.0,96900.0,0.05158]
[1733809916809,0.051649,96922.0,96920.0,0.24627427]
[1733809916810,0.05157,96921.0,96920.0,0.24627427]
[1733809917010,0.05157,96921.0,96918.0,0.3608]
[1733809917321,8e-05,96919.0,96918.0,0.3608]
[1733809917620,8e-05,96919.0,96918.0,0.66864284]
[1733809918316,8e-05,96919.0,96918.0,0.3608]
[1733809919115,8e-05,96919.0,96918.0,0.67164284]
[1733809919517,0.00108,96919.0,96918.0,0.3698]
[1733809920215,0.00108,96919.0,96918.0,0.67764284]
[1733809920416,0.00108,96919.0,96918.0,0.68977779]
[1733809920821,0.00108,96919.0,96918.0,1.0561892]
[1733809921028,0.00108,96919.0,96918.0,0.68977779]
[1733809921712,0.00108,96919.0,96918.0,0.68677779]
[1733809921913,0.00108,96919.0,96918.0,0.68977779]
[1733809922115,0.00108,96919.0,96918.0,0.68377779]
[1733809922116,8e-05,96919.0,96918.0,0.68377779]
[1733809922419,0.0648,96948.0,96918.0,0.63820679]
[1733809922420,0.051558,96942.0,96918.0,0.63820679]
[1733809922724,0.051558,96942.0,96939.0,0.24603345]
[1733809923118,0.051558,96942.0,96940.0,0.24603345]
[1733809923424,0.051558,96942.0,96939.0,0.24603345]
[1733809923924,0.051639,96940.0,96939.0,0.24587193]
[1733809924219,0.051639,96940.0,96938.0,0.24587193]
[1733809924426,0.05156,96939.0,96937.0,0.18439576]
[1733809924720,0.051561,96937.0,96935.0,0.18439576]
[1733809924919,0.051561,96937.0,96934.0,0.18439576]
[1733809925218,0.051642,96935.0,96934.0,0.18439576]
[1733809925412,0.051642,96935.0,96933.0,0.18433356]
[1733809925617,0.051642,96935.0,96931.0,0.18433356]
[1733809925819,8e-05,96934.0,96931.0,0.18433356]
[1733809926229,8e-05,96932.0,96928.0,0.24587193]
[1733809926419,8e-05,96932.0,96927.0,0.24587193]
[1733809926614,8e-05,96929.0,96927.0,0.24587193]
[1733809926818,8e-05,96928.0,96927.0,0.051566]
[1733809928323,8e-05,96928.0,96927.0,0.053566]
[1733809928630,8e-05,96928.0,96927.0,0.002]
[1733809928816,8e-05,96928.0,96927.0,0.24763847]
[1733809929012,8e-05,96928.0,96927.0,0.002]
[1733809929316,0.0106974,96928.0,96927.0,0.002]
[1733809929516,8e-05,96928.0,96927.0,0.006]
[1733809930222,0.13137307,96928.0,96927.0,0.006]
[1733809930414,0.12098,96928.0,96927.0,0.002]
[1733809930614,0.12098,96928.0,96927.0,0.006]
[1733809930927,8e-05,96928.0,96927.0,0.006]
[1733809931113,8e-05,96928.0,96927.0,0.002]
[1733809931314,8e-05,96928.0,96927.0,0.005]
[1733809932225,8e-05,96928.0,96927.0,0.003]
[1733809932521,8e-05,96928.0,96927.0,0.005]
[1733809932723,8e-05,96928.0,96927.0,0.002]
[1733809932918,8e-05,96928.0,96927.0,0.006]
[1733809933320,8e-05,96928.0,96912.0,0.60643847]
[1733809933321,0.051571,96917.0,96915.0,0.18424966]
[1733809933522,0.110572,96916.0,96915.0,0.18436638]
[1733809933722,0.110572,96916.0,96912.0,0.3608]
[1733809933723,0.12258,96916.0,96912.0,0.3608]
[1733809933926,0.051573,96914.0,96912.0,0.3608]
[1733809934123,8e-05,96913.0,96912.0,0.3608]
[1733809934327,8e-05,96913.0,96911.0,0.24563847]
[1733809934528,8e-05,96913.0,96904.0,0.66834181]
[1733809934529,8e-05,96913.0,96907.0,0.24563847]
[1733809934824,8e-05,96908.0,96906.0,0.24563847]
[1733809935213,0.051573,96914.0,96907.0,0.24563847]
[1733809935419,0.051573,96914.0,96912.0,0.18439661]
[1733809935717,0.051573,96914.0,96913.0,4e-05]
[1733809936127,0.051573,96914.0,96913.0,0.18443661]
[1733809936513,0.051573,96914.0,96913.0,4e-05]
[1733809936918,0.051573,96914.0,96913.0,0.00204]
[1733809937120,0.06192059,96914.0,96913.0,0.00204]
[1733809938430,0.059,96916.0,96913.0,0.00204]
[1733809938628,0.3608,96928.0,96913.0,0.00204]
[1733809938822,0.1221,96935.0,96925.0,0.23604165]
[1733809939020,0.13264912,96935.0,96930.0,0.18442882]
[1733809939224,0.07234912,96935.0,96929.0,0.23599382]
[1733809939425,0.07234912,96935.0,96934.0,4e-05]
[1733809940721,0.01054912,96935.0,96934.0,4e-05]
[1733809940922,0.0637,96946.0,96934.0,4e-05]
[1733809941126,0.051558,96943.0,96939.0,0.18446522]
[1733809941627,0.051558,96943.0,96935.0,0.2459662]
[1733809941628,0.051558,96943.0,96940.0,0.18446522]
[1733809941936,0.0637,96946.0,96940.0,0.18446522]
[1733809942134,0.0637,96946.0,96941.0,0.18446522]
[1733809942433,0.07421591,96946.0,96941.0,0.18446522]
[1733809942621,0.051558,96942.0,96941.0,0.18446522]
[1733809942821,0.051558,96942.0,96940.0,0.18446522]
[1733809943122,0.051558,96942.0,96941.0,0.18446522]
[1733809943933,0.053558,96942.0,96940.0,0.18446522]
[1733809944130,0.053558,96942.0,96941.0,0.18446522]
[1733809945030,0.053558,96942.0,96937.0,0.2459662]
[1733809945222,0.053558,96942.0,96941.0,0.18452368]
[1733809945420,0.055558,96942.0,96941.0,0.18452368]
[1733809946125,0.055558,96942.0,96937.0,0.2459662]
[1733809946526,0.055558,96942.0,96938.0,0.2459662]
[1733809947235,0.054558,96942.0,96938.0,0.2459662]
[1733809947841,0.054558,96942.0,96938.0,0.24609199]
[1733809948535,0.001,96942.0,96938.0,0.29765199]
[1733809948933,0.001,96942.0,96939.0,0.24609199]
[1733809949131,0.002,96942.0,96939.0,0.24609199]
[1733809949327,0.002,96942.0,96940.0,0.0616]
[1733809950933,0.003,96942.0,96940.0,0.0616]
[1733809951332,0.054558,96942.0,96940.0,0.0616]
[1733809953425,0.054558,96942.0,96940.0,0.30769199]
[1733809957338,0.054558,96942.0,96940.0,0.0616]
[1733809958844,0.052558,96942.0,96940.0,0.0616]
[1733809960136,0.051558,96942.0,96940.0,0.0616]
[1733809960635,0.051558,96942.0,96931.0,0.02027879]
[1733809960636,0.05156,96938.0,96937.0,0.24609199]
[1733809960835,0.05156,96938.0,96936.0,0.24609199]
[1733809961036,0.05164,96938.0,96936.0,0.24609199]
[1733809961837,0.05164,96938.0,96937.0,0.001]
[1733809962131,0.05164,96938.0,96937.0,0.24709199]
[1733809963433,0.06180184,96938.0,96937.0,0.001]
[1733809963732,0.06180184,96938.0,96936.0,0.002]
[1733809963733,0.06180184,96938.0,96936.0,0.003]
[1733809964137,8e-05,96937.0,96936.0,0.001]
[1733809964338,8e-05,96937.0,96931.0,0.32789377]
[1733809964742,8e-05,96932.0,96931.0,0.32789377]
[1733809964938,8e-05,96932.0,96931.0,0.59652069]
[1733809965142,8e-05,96932.0,96931.0,0.28890571]
[1733809965344,8e-05,96932.0,96931.0,0.5967868]
[1733809965537,8e-05,96932.0,96931.0,0.28890571]
[1733809965736,8e-05,96932.0,96931.0,0.29290571]
[1733809967148,8e-05,96932.0,96931.0,0.29490571]
[1733809967741,8e-05,96932.0,96931.0,0.29090571]
[1733809968045,8e-05,96932.0,96931.0,0.29490571]
[1733809968752,8e-05,96932.0,96931.0,0.34646971]
[1733809969138,8e-05,96932.0,96931.0,0.66677501]
[1733809970334,8e-05,96932.0,96931.0,1.02757501]
[1733809970846,8e-05,96932.0,96931.0,1.02357501]
[1733809971048,8e-05,96932.0,96931.0,1.02757501]
[1733809971945,8e-05,96932.0,96931.0,1.45823599]
[1733809972251,8e-05,96932.0,96931.0,1.02757501]
[1733809984659,8e-05,96932.0,96931.0,1.02962548]
[1733809988263,8e-05,96938.0,96937.0,0.051561]
[1733809988452,8e-05,96938.0,96937.0,0.64254369]
[1733809988649,8e-05,96938.0,96937.0,0.64258369]
[1733809989463,8e-05,96938.0,96937.0,0.64358369]
[1733809989864,0.051552,96955.0,96953.0,0.051552]
[1733809990055,0.051552,96955.0,96953.0,0.35955966]
[1733809990254,0.051552,96955.0,96954.0,0.5768875]
[1733809990450,0.051552,96955.0,96954.0,0.26887984]
[1733809990654,0.051552,96955.0,96954.0,0.57684749]
[1733809991958,0.057552,96955.0,96954.0,0.57684749]
[1733809992159,0.009,96955.0,96954.0,0.57684749]
[1733809992354,0.009,96955.0,96954.0,0.26887984]
[1733809992555,0.009,96955.0,96954.0,0.26987984]
[1733809996269,0.009,96955.0,96954.0,0.63931917]
[1733809996570,0.009,96955.0,96954.0,0.58981066]
[1733809997069,9.505e-05,96970.0,96967.0,0.051545]
[1733809997259,9.505e-05,96970.0,96968.0,0.30769352]
[1733809997465,9.505e-05,96970.0,96969.0,4e-05]
[1733809997965,0.01043774,96970.0,96969.0,4e-05]
[1733809998161,0.07098074,96970.0,96969.0,4e-05]
[1733809998357,0.07698074,96970.0,96969.0,4e-05]
[1733809998569,0.06798074,96970.0,96969.0,4e-05]
[1733809998760,0.07698074,96970.0,96969.0,0.00104]
[1733809999069,0.07098074,96970.0,96969.0,0.00104]
[1733809999273,0.07698074,96970.0,96969.0,0.00204]
[1733810000274,0.02543774,96970.0,96969.0,0.00204]
[1733810001167,0.01543774,96970.0,96969.0,4e-05]
[1733810001368,0.01943774,96970.0,96969.0,0.00104]
[1733810001960,0.01443774,96970.0,96969.0,0.00104]
[1733810002171,0.01943774,96970.0,96969.0,0.00104]
[1733810003866,0.00909505,96970.0,96969.0,0.00104]
[1733810005166,0.00909505,96970.0,96969.0,0.57657653]
[1733810005372,0.00909505,96970.0,96969.0,0.26888301]
[1733810007270,0.00509505,96970.0,96969.0,0.26788301]
[1733810007473,0.00909505,96970.0,96969.0,0.26888301]
[1733810007669,0.01409505,96970.0,96969.0,0.26888301]
[1733810009566,0.01409505,96970.0,96969.0,0.00104]
[1733810011977,0.00909505,96970.0,96969.0,0.00104]
[1733810012984,0.00909505,96970.0,96969.0,0.00113379]
[1733810015180,0.00909505,96970.0,96969.0,0.30830714]
[1733810015378,0.00909505,96970.0,96969.0,0.00113379]
[1733810015683,0.00909505,96970.0,96969.0,0.30830714]
[1733810016279,0.00909505,96970.0,96969.0,0.57716918]
[1733810016575,0.00909505,96970.0,96969.0,0.26999583]
[1733810017983,0.00909505,96970.0,96969.0,0.30844106]
[1733810018184,0.00909505,96970.0,96969.0,0.27001643]
[1733810018384,0.00909505,96970.0,96969.0,0.00113379]
[1733810020289,0.00909505,96970.0,96969.0,0.30850613]
[1733810020691,0.00909505,96970.0,96969.0,0.00113379]
[1733810021076,0.00909505,96970.0,96969.0,0.30850613]
[1733810021584,0.00909505,96970.0,96969.0,0.26985318]
[1733810027695,0.00909505,96970.0,96969.0,0.27043976]
[1733810029598,0.00909505,96970.0,96969.0,0.63123976]
[1733810030596,0.00909505,96970.0,96969.0,0.64167677]
[1733810032587,0.00909505,96970.0,96969.0,0.96214462]
[1733810034597,0.09255571,96984.0,96969.0,0.96214462]
[1733810034598,0.00051,97019.0,96982.0,0.004]
[1733810034790,0.21596333,97051.0,97018.0,0.3608]
[1733810034989,0.0614,97049.0,97047.0,0.18465476]
[1733810035186,0.0614,97049.0,97045.0,0.18408156]
[1733810035394,0.0614,97049.0,97048.0,0.18406433]
[1733810035696,0.0614,97049.0,97048.0,9.675e-05]
[1733810038190,0.0614,97049.0,97045.0,0.16021757]
[1733810038501,0.051503,97046.0,97045.0,0.16021757]
[1733810038898,0.351503,97046.0,97045.0,0.16021757]
[1733810039101,1.851503,97046.0,97045.0,0.16021757]
[1733810039292,1.851503,97046.0,97045.0,0.16027789]
[1733810039692,0.051503,97046.0,97045.0,0.16027789]
[1733810039994,0.01044272,97046.0,97045.0,0.16027789]
[1733810040198,0.0624,97049.0,97045.0,0.16027789]
[1733810040793,0.0614,97049.0,97045.0,0.16027789]
[1733810041109,0.001,97046.0,97045.0,0.16027789]
[1733810041305,0.001,97046.0,97045.0,0.15069359]
[1733810043990,0.052503,97046.0,97045.0,0.15069359]
[1733810044200,0.051503,97046.0,97045.0,0.14685987]
[1733810044997,0.051503,97046.0,97045.0,6.032e-05]
[1733810045792,0.052503,97046.0,97045.0,6.032e-05]
[1733810047205,0.052503,97046.0,97043.0,0.35932684]
[1733810047503,8e-05,97044.0,97043.0,0.35932684]
[1733810049395,0.00108,97044.0,97043.0,0.35932684]
[1733810050200,0.00108,97044.0,97043.0,0.35871344]
[1733810050800,0.00108,97044.0,97043.0,0.7216]
[1733810051201,0.052584,97044.0,97043.0,0.7216]
[1733810053300,0.052584,97044.0,97043.0,0.72135464]
[1733810055903,0.051584,97044.0,97043.0,0.72135464]
[1733810056113,0.051584,97044.0,97043.0,0.72935464]
[1733810056404,0.051584,97044.0,97043.0,0.7292565]
[1733810056609,0.051584,97044.0,97043.0,0.7342565]
[1733810057010,0.051584,97044.0,97043.0,0.7292565]
[1733810057208,0.051584,97044.0,97043.0,0.7342565]
[1733810057709,0.051584,97044.0,97043.0,0.7252565]
[1733810058406,0.051584,97044.0,97043.0,0.7242565]
[1733810059006,0.051584,97044.0,97043.0,0.7212565]
[1733810059310,0.051584,97044.0,97043.0,0.7211865]
[1733810061508,0.051584,97044.0,97043.0,0.24198579]
[1733810061714,0.051507,97039.0,97038.0,0.3608]
[1733810062106,0.051587,97039.0,97038.0,0.3608]
[1733810063310,0.051587,97039.0,97038.0,0.71904252]
[1733810063914,0.051587,97039.0,97038.0,0.72104252]
[1733810064207,0.051587,97039.0,97038.0,1.09516751]
[1733810064411,0.051587,97039.0,97038.0,1.09316751]
[1733810064613,0.051587,97039.0,97038.0,1.09416751]
[1733810064800,0.03649092,97048.0,97038.0,1.09416751]
[1733810065106,0.03649092,97048.0,97047.0,0.36084]
[1733810065315,0.0614,97049.0,97047.0,0.71908252]
[1733810065511,0.112902,97049.0,97048.0,0.35824252]
[1733810065707,0.112902,97049.0,97048.0,0.35828252]
[1733810066500,0.1233742,97049.0,97048.0,0.35828252]
[1733810066911,0.1233742,97049.0,97048.0,0.3582797]
[1733810067411,0.0619742,97049.0,97048.0,0.3582797]
[1733810068711,0.0619742,97049.0,97048.0,0.72750864]
[1733810069010,0.0619742,97049.0,97048.0,0.72850864]
[1733810069408,0.0619742,97049.0,97048.0,0.79250864]
[1733810069709,0.0619742,97049.0,97048.0,0.4242797]
[1733810070906,0.0619742,97049.0,97048.0,0.79350864]
[1733810071116,0.0619742,97049.0,97048.0,0.4242797]
[1733810071504,0.0619742,97049.0,97048.0,0.4232797]
[1733810072314,0.0619742,97049.0,97048.0,0.4222797]
[1733810073016,0.0629742,97049.0,97048.0,0.4232797]
[1733810073207,0.0629742,97049.0,97048.0,0.37820345]
[1733810074005,0.0629742,97049.0,97048.0,0.37720345]
[1733810075311,0.0629742,97049.0,97048.0,0.31320345]
[1733810075312,0.0619742,97049.0,97048.0,0.31320345]
[1733810076013,0.0619742,97049.0,97048.0,0.62088711]
[1733810076316,0.0629742,97049.0,97048.0,0.62088711]
[1733810076712,0.0629742,97049.0,97048.0,0.30772366]
[1733810077115,0.0629742,97049.0,97048.0,0.31020244]
[1733810077327,0.0629742,97049.0,97048.0,0.61776225]
[1733810077618,0.0629742,97049.0,97048.0,0.31015989]
[1733810077818,0.0629742,97049.0,97048.0,0.61765775]
[1733810078121,0.0639742,97049.0,97048.0,0.30753786]
[1733810078417,0.0639742,97049.0,97048.0,0.61757595]
[1733810078621,0.0639742,97049.0,97048.0,0.30753786]
[1733810078814,0.0639742,97049.0,97048.0,0.61759137]
[1733810079017,0.0639742,97049.0,97048.0,0.61759123]
[1733810079207,0.0619742,97049.0,97048.0,0.30753786]
[1733810079714,0.0619742,97049.0,97047.0,0.30749329]